[Event "IIFL WEALTH VI Under-13 2021"]
[Site "Mumbai"]
[Date "2022.01.05"]
[Round "7.2"]
[White "Bagwe Gaurang"]
[Black "Iyer Arvind"]
[Result "1-0"]
[ECO "C77"]
[WhiteElo "1850"]
[BlackElo "1662"]
[Annotator "NA RC"]
[PlyCount "82"]
[EventDate "2021.12.30"]
[EventType "swiss"]
[EventCountry "IND"]
[TimeControl "5400+30"]

1. e4 e5 {[%emt 0:10:07]} 2. Nf3 {[%emt 0:00:08]} Nc6 {[%emt 0:00:10]} 3. Bb5 {[%emt 0:00:09]} a6 {[%emt 0:01:38]} 4. Ba4 {[%emt 0:00:01]} Nf6 {[%emt 0:00:38]} 5. d3 {[%emt 0:00:06]} b5 {[%emt 0:00:48]} 6. Bb3 {[%emt 0:00:01]} Be7 {[%emt 0:01:17]} 7. c3 {[%emt 0:00:08]} d6 {[%emt 0:05:30]} 8. Nbd2 {[%emt 0:00:08]} Na5 {[%emt 0:02:50]} 9. Bc2 {[%emt 0:00:13]} c5 {[%emt 0:00:13]} 10. Nf1 {[%emt 0:00:02]} O-O {[%emt 0:00:54]} 11. Ng3 {[%emt 0:00:24]} Qc7 {[%emt 0:01:16]} 12. O-O {[%emt 0:00:16]} Bd7 {[%emt 0:03:30]} 13. Qe2 Rad8 {[%emt 0:03:42]} 14. Bd2 {[%emt 0:09:33]} Rfe8 {[%emt 0:03:43]} 15. Rae1 {[%emt 0:01:13]} h6 {[%emt 0:02:10]} 16. Nh4 {[%emt 0:01:20]} Be6 {[%emt 0:16:00]} 17. Nhf5 {[%emt 0:03:38]} d5 {[%emt 0:07:38]} 18. exd5 Rxd5 {[%emt 0:08:50]} 19. f4 {[%emt 0:15:31]} Bxf5 {[%emt 0:01:12]} 20. Nxf5 {[%emt 0:00:03]} Bf8 {[%emt 0:01:24]} 21. Qf2 {[%emt 0:05:28]} Nc6 {[%emt 0:12:27]} 22. fxe5 {[%emt 0:01:39]} Nxe5 {[%emt 0:01:36]} 23. Nxh6+ {[%emt 0:00:23]} gxh6 {[%emt 0:00:26]} 24. Qxf6 {[%emt 0:00:16]} Re6 {[%emt 0:00:43]} 25. Qf5 {[%emt 0:03:30]} Rg6 {[%emt 0:01:04]} 26. Qe4 {[%emt 0:01:05]} Ng4 {[%emt 0:03:27]} 27. Bf4 {[%emt 0:00:22]} Qd7 {[%emt 0:00:21]} 28. Bg3 {[%emt 0:06:48]} Nf6 {[%emt 0:00:29]} 29. Qf3 {[%emt 0:00:11]} Nh5 {[%emt 0:01:42]} 30. d4 {[%emt 0:01:59]} Rxg3 {[%emt 0:03:49]} 31. hxg3 {[%emt 0:00:16]} Rg5 {[%emt 0:00:01]} 32. Re5 {[%emt 0:01:20]} Ng7 {[%emt 0:01:11]} 33. Rxg5 {[%emt 0:00:54]} hxg5 {[%emt 0:00:01]} 34. g4 {[%emt 0:00:16]} cxd4 {[%emt 0:01:21]} 35. Qd3 {[%emt 0:00:20]} Bc5 {[%emt 0:00:54]} 36. Qh7+ {[%emt 0:00:37]} Kf8 {[%emt 0:00:04]} 37. Qh8+ {[%emt 0:00:13]} Ke7 {[%emt 0:00:01]} 38. Qxg7 {[%emt 0:00:19]} d3+ {[%emt 0:00:06]} 39. Kh1 {[%emt 0:00:05]} dxc2 {[%emt 0:00:47]} 40. Rxf7+ {[%emt 0:00:07]} Ke6 {[%emt 0:00:03]} 41. Qf6+ {[%emt 0:00:14]} Kd5 1-0

[Event "IIFL WEALTH VI Under-13 2021"]
[Site "Mumbai"]
[Date "2022.01.05"]
[Round "7.3"]
[White "Jaiveer Mahendru"]
[Black "Ajay Santhosh Parvathareddy"]
[Result "1-0"]
[ECO "B90"]
[WhiteElo "1721"]
[BlackElo "1512"]
[Annotator "NA RC"]
[PlyCount "87"]
[EventDate "2021.12.30"]
[EventType "swiss"]
[EventCountry "IND"]
[TimeControl "5400+30"]

1. e4 {[%emt 0:00:03]} c5 {[%emt 0:00:07]} 2. Nf3 {[%emt 0:00:03]} d6 {[%emt 0:00:06]} 3. d4 {[%emt 0:00:03]} cxd4 {[%emt 0:00:07]} 4. Nxd4 {[%emt 0:00:04]} Nf6 {[%emt 0:00:06]} 5. Nc3 {[%emt 0:00:03]} a6 {[%emt 0:00:05]} 6. Be3 {[%emt 0:00:03]} e5 {[%emt 0:00:05]} 7. Nb3 {[%emt 0:00:03]} Be6 {[%emt 0:00:12]} 8. f3 {[%emt 0:00:04]} Be7 {[%emt 0:00:07]} 9. Qd2 {[%emt 0:00:03]} h5 {[%emt 0:00:12]} 10. O-O-O {[%emt 0:00:13]} Nbd7 {[%emt 0:00:07]} 11. Nd5 {[%emt 0:01:52]} Nxd5 {[%emt 0:00:07]} 12. exd5 {[%emt 0:00:05]} Bf5 {[%emt 0:00:06]} 13. Bd3 {[%emt 0:03:17]} Bxd3 {[%emt 0:00:09]} 14. Qxd3 {[%emt 0:00:23]} Bg5 {[%emt 0:00:13]} 15. g3 Bxe3+ {[%emt 0:01:51]} 16. Qxe3 {[%emt 0:01:38]} Rc8 {[%emt 0:00:22]} 17. Rd2 {[%emt 0:03:56]} Nb6 {[%emt 0:03:01]} 18. Qe2 {[%emt 0:04:28]} Nc4 {[%emt 0:03:21]} 19. Rd3 {[%emt 0:00:15]} b5 {[%emt 0:00:24]} 20. f4 {[%emt 0:00:20]} Kf8 {[%emt 0:01:13]} 21. Rf1 {[%emt 0:01:02]} b4 {[%emt 0:10:21]} 22. fxe5 {[%emt 0:03:45]} Nxe5 {[%emt 0:01:00]} 23. Re3 {[%emt 0:02:21]} Qc7 {[%emt 0:03:32]} 24. Nd4 {[%emt 0:02:28]} Qc4 {[%emt 0:03:39]} 25. Qxc4 {[%emt 0:06:00]} Nxc4 {[%emt 0:01:13]} 26. Re4 {[%emt 0:02:31]} Ne5 {[%emt 0:01:14]} 27. Nf5 {[%emt 0:00:53]} Rc5 {[%emt 0:03:37]} 28. Nxd6 {[%emt 0:01:34]} Rxd5 {[%emt 0:00:13]} 29. Rxb4 {[%emt 0:02:47]} Nc6 {[%emt 0:00:17]} 30. Nxf7 {[%emt 0:00:34]} Nxb4 {[%emt 0:00:18]} 31. Nxh8+ {[%emt 0:00:06]} Ke8 {[%emt 0:02:08]} 32. a3 {[%emt 0:00:21]} Nc6 {[%emt 0:00:05]} 33. Ng6 {[%emt 0:00:04]} Nd4 {[%emt 0:00:24]} 34. c3 {[%emt 0:01:10]} Nb3+ {[%emt 0:00:33]} 35. Kc2 {[%emt 0:00:06]} Nc5 {[%emt 0:00:06]} 36. Rf8+ {[%emt 0:00:21]} Kd7 {[%emt 0:00:07]} 37. Rf7+ {[%emt 0:00:34]} Ke6 {[%emt 0:00:06]} 38. Rc7 {[%emt 0:00:38]} Rg5 {[%emt 0:01:03]} 39. Nf4+ {[%emt 0:00:34]} Kd6 {[%emt 0:00:06]} 40. Ra7 {[%emt 0:00:25]} Kc6 {[%emt 0:00:13]} 41. b4 {[%emt 0:00:14]} Kb6 {[%emt 0:00:04]} 42. Re7 {[%emt 0:00:07]} Nb7 {[%emt 0:00:14]} 43. c4 {[%emt 0:00:33]} a5 {[%emt 0:00:10]} 44. c5+ {[%emt 0:00:20]} 1-0

[Event "IIFL WEALTH VI Under-13 2021"]
[Site "Mumbai"]
[Date "2022.01.05"]
[Round "7.4"]
[White "Raghu Ram Reddy Seelam"]
[Black "Kajrolkar Dakshil"]
[Result "1/2-1/2"]
[ECO "B06"]
[WhiteElo "1712"]
[BlackElo "1357"]
[Annotator "NA RC"]
[PlyCount "81"]
[EventDate "2021.12.30"]
[EventType "swiss"]
[EventCountry "IND"]
[TimeControl "5400+30"]

1. e4 {[%emt 0:00:10]} g6 {[%emt 0:00:24]} 2. d4 {[%emt 0:00:47]} Bg7 {[%emt 0:00:55]} 3. Nc3 {[%emt 0:00:27]} c5 {[%emt 0:00:46]} 4. dxc5 {[%emt 0:01:50]} Qa5 {[%emt 0:00:48]} 5. Bd2 {[%emt 0:02:40]} Qxc5 {[%emt 0:01:21]} 6. Nf3 {[%emt 0:00:46]} Qc7 {[%emt 0:02:26]} 7. Bd3 {[%emt 0:01:41]} Nc6 {[%emt 0:00:37]} 8. O-O {[%emt 0:05:48]} d6 {[%emt 0:04:33]} 9. h3 {[%emt 0:01:58]} Nf6 {[%emt 0:02:57]} 10. Re1 {[%emt 0:11:28]} O-O {[%emt 0:07:07]} 11. Qc1 {[%emt 0:01:18]} Bd7 {[%emt 0:03:07]} 12. Bh6 {[%emt 0:01:37]} Rac8 {[%emt 0:03:35]} 13. Bxg7 {[%emt 0:04:08]} Kxg7 {[%emt 0:00:52]} 14. a3 {[%emt 0:05:57]} a6 {[%emt 0:05:17]} 15. Qf4 {[%emt 0:05:38]} e6 {[%emt 0:11:50]} 16. Rad1 {[%emt 0:02:34]} d5 {[%emt 0:08:14]} 17. Qh4 {[%emt 0:08:25]} d4 {[%emt 0:01:54]} 18. e5 {[%emt 0:12:04]} Nxe5 {[%emt 0:05:58]} 19. Nxd4 {[%emt 0:01:32]} Nxd3 {[%emt 0:00:49]} 20. Rxd3 {[%emt 0:00:40]} e5 {[%emt 0:02:23]} 21. Qxf6+ {[%emt 0:00:26]} Kxf6 {[%emt 0:00:47]} 22. Nd5+ {[%emt 0:00:06]} Kg7 {[%emt 0:00:23]} 23. Nxc7 {[%emt 0:00:05]} exd4 {[%emt 0:01:19]} 24. Nd5 {[%emt 0:00:42]} Rxc2 {[%emt 0:01:31]} 25. Rxd4 {[%emt 0:01:43]} Be6 {[%emt 0:01:10]} 26. Nf4 {[%emt 0:04:04]} Rxb2 {[%emt 0:00:48]} 27. Rxe6 {[%emt 0:00:30]} fxe6 {[%emt 0:01:03]} 28. Nxe6+ {[%emt 0:00:02]} Kg8 {[%emt 0:00:53]} 29. Nxf8 {[%emt 0:00:04]} Kxf8 {[%emt 0:00:11]} 30. Rd7 {[%emt 0:00:31]} Kg8 {[%emt 0:00:33]} 31. a4 {[%emt 0:02:08]} Rb4 {[%emt 0:01:26]} 32. a5 {[%emt 0:00:56]} Rb5 {[%emt 0:00:15]} 33. Kh2 {[%emt 0:00:22]} Rxa5 {[%emt 0:00:14]} 34. Rxb7 {[%emt 0:00:06]} Ra2 {[%emt 0:00:07]} 35. Ra7 {[%emt 0:03:10]} Rxf2 {[%emt 0:00:13]} 36. Rxa6 {[%emt 0:00:04]} Kg7 {[%emt 0:00:07]} 37. Kg3 {[%emt 0:00:03]} Rb2 {[%emt 0:00:16]} 38. h4 {[%emt 0:00:40]} h5 {[%emt 0:03:20]} 39. Kh3 {[%emt 0:00:15]} Rb3+ {[%emt 0:00:19]} 40. g3 {[%emt 0:00:03]} Rb2 {[%emt 0:00:08]} 41. Ra7+ {[%emt 0:00:06]} 1/2-1/2

[Event "IIFL WEALTH VI Under-13 2021"]
[Site "Mumbai"]
[Date "2022.01.05"]
[Round "7.5"]
[White "Daksh Goyal"]
[Black "Bharadia Yash"]
[Result "1/2-1/2"]
[ECO "A28"]
[WhiteElo "1352"]
[BlackElo "1675"]
[Annotator "NA RC"]
[PlyCount "114"]
[EventDate "2021.12.30"]
[EventType "swiss"]
[EventCountry "IND"]
[TimeControl "5400+30"]

1. c4 {[%emt 0:02:09]} e5 {[%emt 0:00:04]} 2. Nc3 {[%emt 0:00:05]} Nf6 {[%emt 0:00:36]} 3. Nf3 {[%emt 0:00:09]} Nc6 {[%emt 0:00:14]} 4. e3 {[%emt 0:00:06]} Bb4 {[%emt 0:00:19]} 5. Qc2 {[%emt 0:00:19]} Bxc3 {[%emt 0:00:05]} 6. Qxc3 {[%emt 0:02:17]} Qe7 {[%emt 0:02:44]} 7. b3 {[%emt 0:00:30]} d5 {[%emt 0:00:30]} 8. d4 {[%emt 0:15:26]} exd4 {[%emt 0:16:31]} 9. Nxd4 {[%emt 0:00:55]} Nxd4 {[%emt 0:05:18]} 10. Qxd4 {[%emt 0:00:03]} O-O {[%emt 0:01:59]} 11. Bb2 {[%emt 0:11:54]} Bg4 {[%emt 0:20:34]} 12. h3 {[%emt 0:13:17]} Be6 {[%emt 0:14:08]} 13. c5 {[%emt 0:06:20]} Ne8 {[%emt 0:03:21]} 14. Bd3 {[%emt 0:11:04]} c6 {[%emt 0:01:46]} 15. g3 {[%emt 0:07:10]} f6 {[%emt 0:00:30]} 16. Kd2 {[%emt 0:05:13]} Nc7 {[%emt 0:06:10]} 17. Rac1 Bf7 {[%emt 0:02:25]} 18. Qg4 {[%emt 0:09:24]} Ne6 {[%emt 0:07:26]} 19. Bd4 {[%emt 0:07:43]} Ng5 {[%emt 0:11:19]} 20. f3 {[%emt 0:01:55]} Be6 {[%emt 0:01:09]} 21. Qf4 {[%emt 0:00:57]} Bd7 {[%emt 0:01:33]} 22. Bb2 {[%emt 0:03:24]} Rae8 {[%emt 0:00:27]} 23. h4 {[%emt 0:00:43]} Ne6 {[%emt 0:00:36]} 24. Qd6 {[%emt 0:00:30]} Qf7 {[%emt 0:00:26]} 25. g4 {[%emt 0:00:23]} Bc8 {[%emt 0:00:41]} 26. Qg3 {[%emt 0:00:39]} Qe7 {[%emt 0:00:33]} 27. Qd6 {[%emt 0:00:43]} Qxd6 {[%emt 0:00:52]} 28. cxd6 {[%emt 0:00:01]} Nd8 {[%emt 0:00:22]} 29. b4 {[%emt 0:01:02]} Bd7 {[%emt 0:01:02]} 30. a4 Nf7 {[%emt 0:00:11]} 31. Bd4 {[%emt 0:00:52]} b6 {[%emt 0:00:27]} 32. e4 {[%emt 0:00:32]} Nxd6 {[%emt 0:01:20]} 33. exd5 {[%emt 0:00:22]} Rc8 {[%emt 0:00:17]} 34. dxc6 Bxc6 {[%emt 0:00:08]} 35. b5 {[%emt 0:01:21]} Bxf3 {[%emt 0:00:10]} 36. Rxc8 {[%emt 0:00:30]} Rxc8 {[%emt 0:00:18]} 37. Rg1 {[%emt 0:00:30]} Kf7 {[%emt 0:01:19]} 38. g5 {[%emt 0:00:18]} f5 {[%emt 0:00:14]} 39. Ke3 {[%emt 0:00:40]} Be4 {[%emt 0:01:02]} 40. Be2 {[%emt 0:00:22]} g6 {[%emt 0:00:29]} 41. Rd1 Re8 {[%emt 0:00:24]} 42. Kf4 {[%emt 0:01:10]} Bc2 {[%emt 0:00:32]} 43. Rd2 {[%emt 0:00:18]} Bxa4 {[%emt 0:00:08]} 44. Be5 Nc8 {[%emt 0:01:17]} 45. Bc4+ {[%emt 0:01:01]} Kf8 {[%emt 0:00:13]} 46. Rd7 {[%emt 0:00:29]} Re7 {[%emt 0:00:08]} 47. Rd8+ Re8 {[%emt 0:00:01]} 48. Rd7 {[%emt 0:00:13]} Re7 {[%emt 0:00:14]} 49. Rd8+ Re8 {[%emt 0:00:11]} 50. Rd7 {[%emt 0:00:11]} Re7 {[%emt 0:00:44]} 51. Rd8+ Re8 52. Bg7+ Ke7 53. Bf6+ Kf8 54. Rd7 Ne7 55. Rxa7 Bc2 56. Rb7 Be4 57. Rxb6 Nd5+ 1/2-1/2

[Event "IIFL WEALTH VI Under-13 2021"]
[Site "Mumbai"]
[Date "2022.01.06"]
[Round "8.2"]
[White "Bagwe Gaurang"]
[Black "Jaiveer Mahendru"]
[Result "1/2-1/2"]
[ECO "B91"]
[WhiteElo "1850"]
[BlackElo "1721"]
[Annotator "NA RC"]
[PlyCount "99"]
[EventDate "2021.12.30"]
[EventType "swiss"]
[EventCountry "IND"]
[SourceTitle "playchess.com"]
[Source "ChessBase"]
[SourceQuality "1"]
[TimeControl "5400+30"]

1. e4 {[%emt 0:00:03]} c5 {[%emt 0:00:05]} 2. Nf3 {[%emt 0:00:05]} d6 {[%emt 0:00:00]} 3. d4 cxd4 {[%emt 0:00:05]} 4. Nxd4 {[%emt 0:00:07]} Nf6 {[%emt 0:00:07]} 5. Nc3 {[%emt 0:00:03]} a6 {[%emt 0:00:03]} 6. g3 {[%emt 0:00:05]} e5 {[%emt 0:00:05]} 7. Nde2 {[%emt 0:00:04]} Be7 {[%emt 0:00:05]} 8. Bg2 {[%emt 0:00:04]} O-O {[%emt 0:00:08]} 9. O-O {[%emt 0:00:59]} Nbd7 {[%emt 0:00:35]} 10. h3 {[%emt 0:01:15]} b5 {[%emt 0:00:42]} 11. g4 {[%emt 0:00:41]} b4 {[%emt 0:03:26]} 12. Nd5 {[%emt 0:00:04]} Nxd5 {[%emt 0:00:18]} 13. exd5 {[%emt 0:00:20]} a5 {[%emt 0:02:33]} 14. Be3 {[%emt 0:07:35]} Ba6 {[%emt 0:01:39]} 15. Qd2 {[%emt 0:01:47]} Rb8 {[%emt 0:09:21]} 16. Rfc1 {[%emt 0:04:22]} a4 {[%emt 0:07:01]} 17. Ng3 {[%emt 0:02:11]} g6 {[%emt 0:00:38]} 18. c3 {[%emt 0:01:44]} f5 {[%emt 0:06:50]} 19. Bh6 {[%emt 0:02:26]} Rf7 {[%emt 0:00:19]} 20. cxb4 {[%emt 0:04:04]} Bh4 {[%emt 0:03:32]} 21. Rc6 {[%emt 0:01:56]} Bb5 {[%emt 0:01:52]} 22. Rxd6 {[%emt 0:00:52]} Rb6 {[%emt 0:05:01]} 23. Rxb6 {[%emt 0:02:24]} Nxb6 {[%emt 0:00:08]} 24. Be3 {[%emt 0:05:46]} Nc4 {[%emt 0:01:33]} 25. Qe1 {[%emt 0:01:58]} f4 {[%emt 0:01:07]} 26. Bc5 {[%emt 0:00:10]} fxg3 {[%emt 0:01:13]} 27. fxg3 {[%emt 0:00:10]} Bf6 {[%emt 0:03:11]} 28. d6 {[%emt 0:02:02]} Kh8 {[%emt 0:06:41]} 29. Bd5 {[%emt 0:00:53]} Rg7 {[%emt 0:00:48]} 30. Bxc4 {[%emt 0:13:42]} Bxc4 {[%emt 0:00:09]} 31. b3 {[%emt 0:04:05]} axb3 {[%emt 0:04:12]} 32. axb3 {[%emt 0:00:09]} Bxb3 {[%emt 0:00:09]} 33. Qe4 {[%emt 0:00:36]} Rg8 {[%emt 0:09:15]} 34. Ra7 {[%emt 0:00:18]} Be6 {[%emt 0:02:38]} 35. h4 {[%emt 0:11:08]} Qc8 {[%emt 0:03:56]} 36. g5 {[%emt 0:02:15]} Bg7 {[%emt 0:03:33]} 37. Rc7 {[%emt 0:04:49]} Qa6 {[%emt 0:02:16]} 38. Re7 $2 {[%emt 0:06:36] [#]} (38. Ra7 $11 {and White stays safe.} Qb5 39. Ra5) 38... Bh3 $2 {[%emt 0:02:05]} ({And not} 38... Qa1+ 39. Kh2 $17) (38... Rf8 $1 $19 39. Kh2 (39. Rxe6 $2 Qa1+ 40. Kh2 Qa2+ 41. Qg2 Qxe6 $19) (39. b5 Qxb5) 39... Bf5) 39. Kh2 {[%emt 0:00:44]} (39. g4 $1 $11 {keeps the balance.} Qf1+ 40. Kh2) 39... Bf5 {[%emt 0:03:37]} 40. Qg2 $2 {[%emt 0:00:54]} (40. Qe1 $17 {keeps fighting.}) 40... Qd3 {[%emt 0:00:26]} 41. g4 {[%emt 0:04:50]} Be4 {[%emt 0:00:18]} 42. Qf2 {[%emt 0:01:26]} Bf3 {[%emt 0:02:04]} 43. d7 {[%emt 0:01:07]} e4 {[%emt 0:03:57]} 44. Qa2 {[%emt 0:01:45]} Bxg4 $11 {[%emt 0:09:08]} 45. Qxg8+ {[%emt 0:07:23]} Kxg8 {[%emt 0:00:01]} 46. Re8+ {[%emt 0:00:01]} Kf7 {[%emt 0:00:34]} 47. Re7+ {[%emt 0:00:49]} Kg8 {[%emt 0:00:35]} 48. Re8+ {[%emt 0:00:22]} Kf7 {[%emt 0:00:03]} 49. Re7+ {[%emt 0:02:21]} Kg8 {[%emt 0:00:32]} 50. Re8+ {[%emt 0:00:11]} 1/2-1/2

[Event "IIFL WEALTH VI Under-13 2021"]
[Site "Mumbai"]
[Date "2022.01.06"]
[Round "8.3"]
[White "Kajrolkar Dakshil"]
[Black "Adireddy Arjun"]
[Result "0-1"]
[ECO "D70"]
[WhiteElo "1357"]
[BlackElo "1658"]
[Annotator "NA RC"]
[PlyCount "99"]
[EventDate "2021.12.30"]
[EventType "swiss"]
[EventCountry "IND"]
[SourceTitle "playchess.com"]
[Source "ChessBase"]
[SourceQuality "1"]
[TimeControl "5400+30"]

1. d4 {[%emt 0:00:22]} d5 {[%emt 0:00:39]} 2. c4 {[%emt 0:00:30]} c6 {[%emt 0:00:21]} 3. Nf3 {[%emt 0:00:33]} Nf6 {[%emt 0:00:04]} 4. Nbd2 {[%emt 0:00:57]} Bf5 {[%emt 0:03:52]} 5. g3 {[%emt 0:01:49]} h6 {[%emt 0:00:35]} 6. Bg2 {[%emt 0:01:05]} e6 {[%emt 0:00:20]} 7. O-O {[%emt 0:00:53]} Bd6 {[%emt 0:00:46]} 8. b3 {[%emt 0:01:39]} Nbd7 {[%emt 0:00:16]} 9. Bb2 {[%emt 0:00:43]} O-O {[%emt 0:01:31]} 10. Rc1 {[%emt 0:02:10]} Qe7 {[%emt 0:00:53]} 11. Re1 {[%emt 0:02:24]} Bh7 {[%emt 0:02:08]} 12. e3 {[%emt 0:08:33]} Rfd8 {[%emt 0:02:32]} 13. Qe2 {[%emt 0:01:40]} Ne4 {[%emt 0:08:57]} 14. Red1 {[%emt 0:04:43]} f5 {[%emt 0:01:55]} 15. Nxe4 {[%emt 0:03:36]} fxe4 {[%emt 0:00:31]} 16. Nd2 {[%emt 0:00:19]} a6 {[%emt 0:13:57]} 17. f3 {[%emt 0:05:21]} exf3 {[%emt 0:00:15]} 18. Bxf3 {[%emt 0:00:10]} e5 {[%emt 0:00:42]} 19. cxd5 {[%emt 0:00:47]} e4 {[%emt 0:00:12]} 20. Bg2 {[%emt 0:06:31]} cxd5 {[%emt 0:00:09]} 21. Rf1 {[%emt 0:02:16]} Nf6 {[%emt 0:01:00]} 22. Bh3 {[%emt 0:05:19]} Bg6 {[%emt 0:00:31]} 23. Qg2 {[%emt 0:02:56]} Be8 {[%emt 0:01:49]} 24. a4 {[%emt 0:00:48]} b5 {[%emt 0:00:26]} 25. Ra1 {[%emt 0:01:57]} bxa4 {[%emt 0:01:10]} 26. bxa4 {[%emt 0:00:07]} Rab8 {[%emt 0:00:14]} 27. Bc3 {[%emt 0:01:23]} Bb4 {[%emt 0:02:37]} 28. Bxb4 {[%emt 0:02:10]} Rxb4 {[%emt 0:00:07]} 29. a5 {[%emt 0:00:33]} Rb2 {[%emt 0:00:51]} 30. Rfb1 {[%emt 0:02:07]} Rdb8 {[%emt 0:00:10]} 31. Qf1 {[%emt 0:01:44]} Qd6 {[%emt 0:04:22]} 32. Qc1 {[%emt 0:02:26]} Rxb1 {[%emt 0:02:03]} 33. Rxb1 {[%emt 0:00:23]} Rxb1 {[%emt 0:00:31]} 34. Nxb1 {[%emt 0:05:27]} Qb4 {[%emt 0:00:07]} 35. Be6+ {[%emt 0:01:41]} Kh7 {[%emt 0:02:04]} 36. Bf5+ {[%emt 0:02:31]} Bg6 {[%emt 0:00:41]} 37. Bc8 {[%emt 0:00:45]} Qxa5 {[%emt 0:00:35]} 38. Qf1 {[%emt 0:01:05]} Qb6 {[%emt 0:01:43]} 39. Bxa6 {[%emt 0:03:28]} Qb3 {[%emt 0:01:12]} 40. Nd2 {[%emt 0:02:38]} Qxe3+ {[%emt 0:00:20]} 41. Qf2 {[%emt 0:00:11]} Qa3 {[%emt 0:01:14]} 42. Qf1 {[%emt 0:01:38]} Qa4 {[%emt 0:00:53]} 43. Kh1 {[%emt 0:02:29]} Qxd4 {[%emt 0:00:14]} 44. Qe2 {[%emt 0:00:11]} Bh5 {[%emt 0:00:30]} 45. Qe1 {[%emt 0:00:25]} e3 {[%emt 0:01:10]} 46. Nb3 {[%emt 0:00:59]} Bf3+ {[%emt 0:02:56]} 47. Kg1 {[%emt 0:00:23]} Qb2 {[%emt 0:00:19]} 48. Bd3+ {[%emt 0:00:59]} g6 {[%emt 0:01:24]} 49. Qf1 {[%emt 0:00:32]} e2 {[%emt 0:00:22]} 50. Qxf3 {[%emt 0:00:46]} 0-1

[Event "IIFL WEALTH VI Under-13 2021"]
[Site "Mumbai"]
[Date "2022.01.06"]
[Round "8.4"]
[White "Sharnarthi Viresh"]
[Black "Roy Aanya"]
[Result "0-1"]
[ECO "A57"]
[WhiteElo "1456"]
[BlackElo "1329"]
[Annotator "NA RC"]
[PlyCount "88"]
[EventDate "2021.12.30"]
[EventType "swiss"]
[EventCountry "IND"]
[SourceTitle "playchess.com"]
[Source "ChessBase"]
[SourceQuality "1"]
[TimeControl "5400+30"]

1. d4 {[%emt 0:00:02]} Nf6 {[%emt 0:00:12]} 2. c4 {[%emt 0:00:04]} c5 {[%emt 0:00:05]} 3. d5 {[%emt 0:00:03]} b5 {[%emt 0:00:15]} 4. cxb5 {[%emt 0:00:06]} a6 {[%emt 0:00:04]} 5. b6 {[%emt 0:00:23]} Qxb6 {[%emt 0:00:41]} 6. Nc3 {[%emt 0:01:09]} a5 {[%emt 0:00:18]} 7. e4 {[%emt 0:05:13]} d6 {[%emt 0:00:27]} 8. f4 {[%emt 0:01:11]} a4 {[%emt 0:10:09]} 9. e5 {[%emt 0:03:02]} dxe5 {[%emt 0:00:59]} 10. fxe5 {[%emt 0:00:05]} Nfd7 {[%emt 0:09:26]} 11. Bb5 {[%emt 0:04:06]} g6 {[%emt 0:02:26]} 12. Qe2 {[%emt 0:04:31]} Ba6 {[%emt 0:01:14]} 13. d6 {[%emt 0:09:37]} e6 {[%emt 0:06:46]} 14. Nh3 {[%emt 0:05:25]} Bg7 {[%emt 0:02:41]} 15. Qe4 {[%emt 0:27:01]} Bxb5 {[%emt 0:12:51]} 16. Nxb5 {[%emt 0:00:13]} Qxb5 {[%emt 0:00:15]} 17. Qxa8 {[%emt 0:00:18]} Qb4+ {[%emt 0:02:34]} 18. Kf1 {[%emt 0:03:28]} Nxe5 {[%emt 0:05:24]} 19. Nf2 {[%emt 0:03:44]} Nec6 {[%emt 0:07:21]} 20. d7+ {[%emt 0:04:27]} Kxd7 {[%emt 0:01:34]} 21. Bd2 {[%emt 0:00:57]} Qb5+ {[%emt 0:00:35]} 22. Kg1 {[%emt 0:00:27]} Na6 {[%emt 0:00:13]} 23. Qxh8 {[%emt 0:00:21]} Bxh8 {[%emt 0:00:16]} 24. Bc3 {[%emt 0:02:52]} Bd4 {[%emt 0:00:57]} 25. Re1 {[%emt 0:01:22]} Nab4 {[%emt 0:00:45]} 26. Rd1 {[%emt 0:01:07]} Ke7 {[%emt 0:00:52]} 27. h4 {[%emt 0:00:20]} Qe2 {[%emt 0:01:21]} 28. Bxd4 {[%emt 0:00:14]} Nxd4 {[%emt 0:00:04]} 29. Rh3 {[%emt 0:00:11]} Nd5 {[%emt 0:01:28]} 30. Rhd3 {[%emt 0:03:14]} Ne3 {[%emt 0:00:32]} 31. Rc1 {[%emt 0:02:50]} Ng4 {[%emt 0:01:20]} 32. Rf1 {[%emt 0:01:47]} Nxf2 {[%emt 0:00:26]} 33. Ra3 {[%emt 0:00:01]} Ne4 {[%emt 0:00:48]} 34. h5 {[%emt 0:01:03]} Qxh5 {[%emt 0:00:12]} 35. Rh3 {[%emt 0:00:21]} Ne2+ {[%emt 0:00:31]} 36. Kh2 {[%emt 0:00:08]} Qe5+ {[%emt 0:00:14]} 37. g3 {[%emt 0:00:05]} N4xg3 {[%emt 0:00:43]} 38. Rf3 {[%emt 0:00:24]} Nh5+ {[%emt 0:00:36]} 39. Kh1 {[%emt 0:00:03]} Neg3+ {[%emt 0:00:21]} 40. Kh2 {[%emt 0:01:17]} Qe2+ {[%emt 0:00:06]} 41. Kg1 {[%emt 0:00:06]} Qxf3 {[%emt 0:00:27]} 42. Rxh5 {[%emt 0:00:11]} Ne2+ {[%emt 0:00:21]} 43. Kh2 {[%emt 0:00:05]} Qg3+ {[%emt 0:00:05]} 44. Kh1 Qg1# 0-1

[Event "IIFL WEALTH VI Under-13 2021"]
[Site "Mumbai"]
[Date "2022.01.06"]
[Round "8.5"]
[White "Gaikwad Manas"]
[Black "Vedant Mistry"]
[Result "1-0"]
[ECO "C54"]
[WhiteElo "1243"]
[BlackElo "1394"]
[Annotator "NA RC"]
[PlyCount "88"]
[EventDate "2021.12.30"]
[EventType "swiss"]
[EventCountry "IND"]
[SourceTitle "playchess.com"]
[Source "ChessBase"]
[SourceQuality "1"]
[TimeControl "5400+30"]

1. e4 {[%emt 0:00:04]} e5 {[%emt 0:00:07]} 2. Nf3 {[%emt 0:00:04]} Nc6 {[%emt 0:00:07]} 3. Bc4 {[%emt 0:00:04]} Bc5 {[%emt 0:00:07]} 4. c3 {[%emt 0:00:04]} Nf6 {[%emt 0:00:07]} 5. d3 {[%emt 0:00:05]} h6 {[%emt 0:00:07]} 6. Bb3 {[%emt 0:00:07]} a6 {[%emt 0:00:57]} 7. Nbd2 {[%emt 0:00:48]} Ba7 {[%emt 0:04:01]} 8. Nf1 d5 {[%emt 0:00:47]} 9. exd5 {[%emt 0:02:34]} Nxd5 {[%emt 0:00:09]} 10. Ng3 {[%emt 0:00:04]} Bg4 {[%emt 0:06:11]} 11. h3 {[%emt 0:01:39]} Be6 {[%emt 0:00:14]} 12. O-O {[%emt 0:00:34]} Qd7 {[%emt 0:01:46]} 13. Re1 {[%emt 0:01:04]} f6 14. d4 {[%emt 0:08:27]} exd4 {[%emt 0:04:48]} 15. Bc2 {[%emt 0:05:46]} d3 {[%emt 0:03:14]} 16. Bxd3 {[%emt 0:00:36]} O-O-O {[%emt 0:01:47]} 17. Rxe6 {[%emt 0:01:49]} Nde7 {[%emt 0:00:34]} 18. Rxe7 {[%emt 0:04:56]} Nxe7 {[%emt 0:02:05]} 19. Ne1 {[%emt 0:00:14]} Qd6 {[%emt 0:18:15]} 20. Qf3 {[%emt 0:03:35]} Rhe8 {[%emt 0:18:49]} 21. Bf4 {[%emt 0:00:31]} Qe6 {[%emt 0:03:50]} 22. Be4 {[%emt 0:02:57]} c6 {[%emt 0:01:00]} 23. Nh5 {[%emt 0:04:33]} Qf7 {[%emt 0:06:41]} 24. Bh2 {[%emt 0:00:38]} f5 {[%emt 0:01:49]} 25. Nd3 {[%emt 0:06:20]} Qf8 {[%emt 0:07:57]} 26. Qg3 {[%emt 0:01:02]} Rd7 {[%emt 0:01:43]} 27. Ne5 {[%emt 0:00:24]} fxe4 28. Nxd7 {[%emt 0:00:35]} Bxf2+ {[%emt 0:03:42]} 29. Qxf2 {[%emt 0:00:08]} Qxf2+ {[%emt 0:00:10]} 30. Kxf2 {[%emt 0:00:02]} Kxd7 {[%emt 0:00:09]} 31. Nxg7 {[%emt 0:00:10]} Rg8 {[%emt 0:00:11]} 32. Nh5 {[%emt 0:00:08]} e3+ {[%emt 0:00:06]} 33. Kg1 {[%emt 0:00:29]} Rg5 {[%emt 0:01:55]} 34. Nf6+ {[%emt 0:00:47]} Ke6 {[%emt 0:00:23]} 35. Ne4 {[%emt 0:00:05]} Rg7 {[%emt 0:01:40]} 36. Re1 {[%emt 0:00:31]} Nf5 {[%emt 0:00:09]} 37. g4 {[%emt 0:00:54]} h5 {[%emt 0:00:08]} 38. g5 {[%emt 0:00:30]} Kd5 {[%emt 0:00:18]} 39. Nf6+ {[%emt 0:00:23]} Kc4 {[%emt 0:00:04]} 40. Bf4 {[%emt 0:00:26]} Kd3 {[%emt 0:00:38]} 41. Nxh5 {[%emt 0:00:17]} Rh7 {[%emt 0:01:16]} 42. Ng3 {[%emt 0:00:10]} Nxg3 {[%emt 0:02:18]} 43. Rxe3+ {[%emt 0:00:06]} Kc2 {[%emt 0:00:05]} 44. Rxg3 {[%emt 0:00:05]} Kxb2 {[%emt 0:00:06]} 1-0